bitfinex/quotes_ETHUSD_20210701
["timestamp","ask_amount","ask_price","bid_price","bid_amount"]
[1625145115235,0.00963353,2133.6,2133.1,3.63804954]
[1625145115335,0.00963353,2133.6,2133.3,7.02431]
[1625145115434,0.00963353,2133.6,2133.2,9.36528]
[1625145115528,0.00963353,2133.6,2133.4,0.2]
[1625145117130,0.00963353,2133.6,2133.3,3.51205]
[1625145119128,0.00963353,2133.6,2133.0,7.02577]
[1625145119225,0.00963353,2133.6,2133.3,3.51205]
[1625145120182,0.00963353,2133.6,2133.3,20.73395]
[1625145120391,0.00963353,2133.6,2133.3,5.73395]
[1625145120477,0.00963353,2133.6,2133.3,20.73395]
[1625145120633,0.00963353,2133.6,2133.4,2.49174954]
[1625145120725,0.00963353,2133.6,2133.4,6.94344954]
[1625145120937,0.00963353,2133.6,2133.4,21.94344954]
[1625145121132,0.00963353,2133.6,2133.4,28.96751954]
[1625145121230,0.00963353,2133.6,2133.5,0.2]
[1625145127032,0.00963353,2133.6,2133.5,2.49174954]
[1625145127927,10.74593353,2134.3,2133.5,2.49174954]
[1625145128028,10.74593353,2134.3,2133.6,3.51216]
[1625145128127,7.0244,2134.2,2133.6,3.51216]
[1625145129590,10.74593353,2134.3,2133.6,3.51216]
[1625145129678,10.74593353,2134.3,2133.7,0.08]
[1625145131033,17.77003353,2134.3,2133.6,3.54619407]
[1625145135525,17.67003353,2134.3,2133.6,3.54619407]
[1625145135727,17.67003353,2134.3,2133.6,0.03403407]
[1625145135888,21.21183353,2134.3,2133.6,0.03403407]
[1625145135987,21.16183353,2134.3,2133.6,0.03403407]
[1625145136420,21.16183353,2134.3,2133.8,0.00786549]
[1625145136722,21.31183353,2134.3,2133.8,0.00786549]
[1625145136822,21.31183353,2134.3,2133.6,9.956e-05]
[1625145138125,3.5138421,2134.2,2133.6,9.956e-05]
[1625145138327,0.15,2134.1,2133.6,9.956e-05]
[1625145139026,0.15,2134.1,2133.3,0.00974833]
[1625145139125,5.3091,2133.7,2133.3,0.00974833]
[1625145139279,7.6333,2133.7,2133.3,0.00974833]
[1625145139476,7.02845,2133.5,2133.3,0.00974833]
[1625145140078,7.02845,2133.5,2132.8,0.0001007]
[1625145140231,7.17845,2133.5,2131.8,0.01044898]
[1625145140343,0.29249295,2133.4,2131.8,0.01044898]
[1625145140438,3.6655972,2133.3,2131.8,0.01044898]
[1625145140536,7.0313,2132.6,2131.8,0.01044898]
[1625145140634,11.4993,2132.6,2131.8,0.01044898]
[1625145140781,11.6493,2132.6,2131.8,0.01044898]
[1625145141082,11.75588301,2132.6,2131.8,0.01044898]
[1625145141282,14.34503671,2132.6,2131.8,0.01044898]
[1625145141834,11.75588301,2132.6,2131.8,0.01044898]
[1625145142937,11.6493,2132.6,2131.8,0.01044898]
[1625145146029,42.967,2132.7,2131.8,4.96564898]
[1625145146136,31.1257,2132.7,2131.8,4.96564898]
[1625145146224,31.1257,2132.7,2131.9,0.06]
[1625145146882,31.1257,2132.7,2131.8,4.96564898]
[1625145147233,21.0122,2132.7,2132.3,1.1785]
[1625145147328,0.00851008,2132.8,2132.3,1.1785]
[1625145147449,0.00851008,2132.8,2132.2,3.51481]
[1625145147712,23.83623008,2133.2,2132.2,3.51481]
[1625145147813,7.03014,2132.7,2132.2,3.51481]
[1625145148515,7.03014,2132.7,2132.3,0.00851008]
[1625145151827,11.09,2133.0,2132.3,0.00851008]
[1625145152205,7.03014,2132.7,2132.3,0.00851008]
[1625145152504,10.94,2133.0,2132.3,0.00851008]
[1625145153261,10.94,2133.0,2132.3,3.52286008]
[1625145153507,10.1787,2133.1,2132.4,0.06]
[1625145153956,10.1787,2133.1,2132.6,3.51394]
[1625145154108,20.5627,2133.2,2132.6,9.30814]
[1625145154208,10.9736,2133.5,2132.6,9.30814]
[1625145154307,0.00974833,2133.8,2132.6,9.30814]
[1625145154457,0.00974833,2133.8,2132.8,7.02636]
[1625145155411,0.00974833,2133.8,2133.1,7.02451]
[1625145155561,0.00974833,2133.8,2133.1,17.26811]
[1625145155660,0.00974833,2133.8,2133.1,18.46691]
[1625145155857,0.00373354,2133.8,2133.2,0.2]
[1625145155958,0.00373354,2133.8,2133.6,5.0]
[1625145156065,3.87159903,2134.8,2133.6,23.7944]
[1625145156161,3.87159903,2134.8,2133.7,0.2]
[1625145156408,3.86051485,2134.8,2133.7,0.2]
[1625145156736,3.86051485,2134.8,2133.8,0.2]
[1625145156737,32.69861599,2135.0,2133.8,0.20786549]
[1625145157137,32.69861599,2135.0,2133.9,3.5111303]
[1625145157287,22.57781599,2135.0,2133.9,3.5111303]
[1625145157385,22.57781599,2135.0,2134.0,0.2]
[1625145157490,29.60049599,2135.0,2134.0,7.22229]
[1625145157586,29.60049599,2135.0,2134.1,0.2]
[1625145157687,18.61399599,2135.0,2134.1,3.71114]
[1625145157790,25.56399599,2135.0,2134.1,3.71114]
[1625145157936,25.56399599,2135.0,2134.1,3.51114]
[1625145158687,25.56399599,2135.0,2134.1,8.47084]
[1625145158963,25.56399599,2135.0,2134.2,0.04]
[1625145159962,25.56399599,2135.0,2134.1,8.47084]
[1625145160062,25.56399599,2135.0,2134.1,4.56484]
[1625145160163,18.61399599,2135.0,2134.1,4.56484]
[1625145161815,11.59131599,2135.0,2134.2,0.08]
[1625145162012,11.54131599,2135.0,2134.2,0.08]
[1625145162365,11.54131599,2135.0,2134.1,3.51114]
[1625145162994,11.54131599,2135.0,2134.2,0.00624268]
[1625145163502,18.56412599,2135.0,2134.2,0.00624268]
[1625145163503,18.51412599,2135.0,2134.2,0.00624268]
[1625145164600,11.49131599,2135.0,2134.2,0.00624268]
[1625145164804,11.49131599,2135.0,2134.3,0.16]
[1625145165007,11.49131599,2135.0,2134.5,3.51093]
[1625145165107,1.19681599,2135.0,2134.5,3.51093]
[1625145168604,1.19681599,2135.0,2134.6,0.06]
[1625145169757,1.19681599,2135.0,2134.5,6.01003]
[1625145169959,1.19681599,2135.0,2134.6,2.32102629]
[1625145171440,1.19681599,2135.0,2134.7,0.06]
[1625145172341,1.19681599,2135.0,2134.5,3.51093]
[1625145172517,1.19681599,2135.0,2134.6,2.0]
[1625145173215,1.19681599,2135.0,2134.5,3.51093]
[1625145173515,1.19681599,2135.0,2134.6,0.08]
[1625145175583,1.19681599,2135.0,2134.5,10.53192]
[1625145175930,1.15870399,2135.0,2134.5,3.51093]
[1625145176281,1.15870399,2135.0,2134.5,7.0212256]
[1625145176378,1.15870399,2135.0,2134.5,7.8803256]
[1625145176478,1.15870399,2135.0,2134.6,0.18]
[1625145176578,1.15870399,2135.0,2134.6,4.03]
[1625145177193,1.15870399,2135.0,2134.6,11.05074]
[1625145177440,1.15870399,2135.0,2134.7,0.14]
[1625145178654,0.02227004,2135.2,2134.7,0.14]
[1625145178754,7.004e-05,2135.2,2134.7,7.16043]
[1625145178856,10.3813,2135.8,2134.7,7.16043]
[1625145178857,10.3813,2135.8,2134.7,2.45602629]
[1625145178953,10.3813,2135.8,2134.8,0.2]
[1625145179297,10.3813,2135.8,2134.7,2.31602629]
[1625145179947,10.3813,2135.8,2135.1,3.50976]
[1625145180051,14.4463,2135.8,2134.5,0.05719731]
[1625145181206,21.46706,2135.8,2134.5,0.05719731]
[1625145181301,0.15,2135.7,2134.5,0.05719731]
[1625145181452,0.25519643,2135.7,2134.5,0.05719731]
[1625145181995,0.15,2135.7,2134.5,0.05719731]
[1625145182197,7.02398,2135.1,2134.5,0.05719731]
[1625145182301,11.12948,2135.1,2134.5,0.05719731]
[1625145182601,4.1055,2135.1,2134.5,0.05719731]
[1625145182849,4.1055,2135.1,2134.6,0.04]
[1625145183147,4.1055,2135.1,2134.5,0.05719731]
[1625145183597,11.12809,2135.1,2134.5,0.05719731]
[1625145186696,11.12809,2135.1,2134.5,9.731e-05]
[1625145186799,11.12809,2135.1,2134.0,4.73623206]
[1625145187100,0.05719731,2135.0,2134.0,4.73623206]
[1625145187301,7.02453,2134.6,2134.0,4.73623206]
[1625145187398,11.87353,2134.6,2134.0,4.73623206]
[1625145187702,11.87353,2134.6,2134.2,0.00604713]
[1625145188792,4.849,2134.6,2134.2,0.00604713]
[1625145188988,3.71912731,2135.0,2134.2,0.00604713]
[1625145189687,3.71912731,2135.0,2134.2,0.01245506]
[1625145190089,7.02453,2134.6,2134.2,0.01245506]
[1625145193215,3.13089731,2135.0,2134.2,0.01245506]
[1625145193963,3.51227,2134.8,2134.2,0.01245506]
[1625145194516,7.02379,2134.5,2134.2,0.01245506]
[1625145196114,7.02379,2134.5,2134.2,0.04649666]
[1625145196214,10.97009,2134.5,2134.2,0.04649666]
[1625145199062,10.97009,2134.5,2134.0,4.68079]
[1625145199264,10.97009,2134.5,2133.7,0.00965356]
[1625145199841,3.51317,2134.2,2133.7,0.00965356]
[1625145200442,7.02666,2134.0,2133.7,0.00965356]
[1625145200641,10.16626,2134.0,2133.7,0.00965356]
[1625145206064,10.16626,2134.0,2133.0,3.51324]
[1625145206168,10.16626,2134.0,2132.7,0.00814983]
[1625145206169,3.51417,2133.8,2132.7,0.00814983]
[1625145206309,0.12551114,2133.7,2132.7,0.00814983]
[1625145206416,0.00664667,2133.7,2132.7,0.00814983]
[1625145206618,0.12392518,2133.7,2132.7,0.00814983]
[1625145206966,0.13105405,2133.6,2132.7,0.00814983]
[1625145207270,10.51293,2133.3,2132.7,0.00814983]
[1625145208463,3.51566,2133.1,2132.7,0.00814983]
[1625145209276,11.0924,2133.3,2132.7,0.00814983]
[1625145209729,7.03123,2132.9,2132.7,0.00814983]
[1625145210077,10.9424,2133.3,2132.7,0.00814983]
[1625145211254,10.0913,2133.4,2132.9,3.51401]
[1625145212309,7.02871,2133.2,2132.9,3.51401]
[1625145212811,10.0913,2133.4,2132.9,3.51401]
[1625145213010,10.0913,2133.4,2133.0,0.08]
[1625145213115,9.37124,2133.5,2133.0,0.08]
[1625145213220,21.08824667,2133.7,2133.0,0.08]
[1625145213371,10.52024667,2133.7,2133.1,3.51356]
[1625145213865,0.00664667,2133.7,2133.1,7.0267967]
[1625145214519,7.03364667,2133.7,2133.1,7.0267967]
[1625145214618,7.03364667,2133.7,2133.1,3.51356]
[1625145215348,7.03364667,2133.7,2132.7,4.69278983]
[1625145215406,10.67464667,2133.7,2132.7,4.69278983]
[1625145215559,10.67464667,2133.7,2132.8,0.2]
[1625145215809,3.691,2133.7,2133.0,3.46391]
[1625145216260,3.691,2133.7,2133.2,0.00664667]
[1625145216459,22.13973356,2134.2,2133.3,3.71281]
[1625145216562,22.13973356,2134.2,2133.3,0.2]
[1625145216766,10.42445356,2134.2,2133.4,0.16]
[1625145217008,10.42445356,2134.2,2133.6,7.0253158]
[1625145217206,10.42445356,2134.2,2133.6,3.5126558]
[1625145217714,10.42445356,2134.2,2133.8,3.5126]
[1625145217813,0.00965356,2134.2,2133.9,3.5126829]
[1625145219416,0.00965356,2134.2,2133.9,8.29e-05]
[1625145220560,0.00965356,2134.2,2133.9,0.0600829]
[1625145220913,0.00965356,2134.2,2133.9,3.5727658]
[1625145221861,0.00965356,2134.2,2134.0,7.0245]
[1625145222124,0.00965356,2134.2,2134.1,5.0416]
[1625145223300,0.00965356,2134.2,2134.1,4.8416]
[1625145226302,0.00965356,2134.2,2134.1,5.0216]
[1625145228001,31.45390593,2135.2,2134.1,5.0216]
[1625145228103,31.45390593,2135.2,2134.5,3.51111]
[1625145228204,21.3526,2135.2,2134.6,3.5111317]
[1625145228703,10.367,2135.2,2134.6,3.5111317]
[1625145228926,10.367,2135.2,2134.7,0.06640793]
[1625145229074,10.367,2135.2,2134.7,0.00640793]
[1625145230026,10.367,2135.2,2134.8,3.51122]
[1625145230127,10.317,2135.2,2134.8,3.51122]
[1625145231697,10.19989266,2135.2,2134.8,3.51122]
[1625145231795,10.08289183,2135.2,2134.8,3.51122]
[1625145231897,10.8667,2135.3,2134.8,3.51122]
[1625145232049,7.02361,2135.1,2134.8,3.51122]
[1625145232247,7.02361,2135.1,2134.4,4.68148]
[1625145232451,7.02361,2135.1,2133.7,4.69312356]
[1625145232554,22.02361,2135.1,2134.4,4.68148]
[1625145232752,0.00604713,2134.7,2134.4,4.68148]
[1625145232850,4.87804713,2134.7,2134.4,4.68148]
[1625145232953,4.85587783,2134.7,2134.4,4.68148]
[1625145233300,7.02543,2134.6,2133.7,8.20562936]
[1625145233448,7.02543,2134.6,2133.7,4.69312356]
[1625145234501,7.02543,2134.6,2133.7,0.00965356]
[1625145235048,9.36724,2134.7,2133.8,3.5119655]
[1625145235201,20.9075,2135.0,2133.8,5.7102]
[1625145235202,10.8773,2135.0,2133.8,5.7102]
[1625145235400,10.8773,2135.0,2133.9,0.2]
[1625145235500,10.8773,2135.0,2134.0,2.51243668]
[1625145235669,10.8773,2135.0,2134.4,7.02204]
[1625145235808,0.00640793,2135.2,2134.4,3.51121]
[1625145236257,0.00640793,2135.2,2134.4,1e-05]
[1625145236658,0.15,2135.1,2134.4,1e-05]
[1625145236764,7.02623,2134.8,2134.4,1e-05]
[1625145237009,0.15,2134.7,2134.4,1e-05]
[1625145238196,7.02608,2134.6,2134.4,1e-05]
[1625145238449,0.15,2134.5,2134.4,1e-05]
[1625145238545,4.9459,2134.5,2134.4,1e-05]
[1625145238997,4.7959,2134.5,2134.4,1e-05]
[1625145239801,18.4472,2135.0,2134.4,1e-05]
[1625145240592,10.0902,2135.0,2134.4,1e-05]
[1625145242198,17.11317,2135.0,2134.4,1e-05]
[1625145242939,17.06317,2135.0,2134.4,1e-05]
[1625145245501,21.07167,2135.0,2134.4,1e-05]
[1625145245602,24.58432,2135.0,2134.4,1e-05]
[1625145245703,39.73432,2135.0,2134.4,1e-05]
[1625145246554,7.02614,2134.8,2133.1,9.36727]
[1625145246656,15.22220099,2134.7,2133.0,4.6838023]
[1625145246754,0.15,2134.6,2133.0,4.6838023]
[1625145246858,0.00965356,2134.2,2133.0,4.6838023]
[1625145247063,4.23195356,2134.2,2133.0,4.6838023]
[1625145247307,4.33819071,2134.2,2133.0,4.6838023]
[1625145247405,4.33819071,2134.2,2133.1,3.51344]
[1625145247510,4.23195356,2134.2,2133.1,3.51344]
[1625145247609,4.23195356,2134.2,2133.0,4.6838023]
[1625145247761,7.02779,2133.7,2132.7,0.00814983]
[1625145247909,11.04689,2133.7,2132.7,0.00814983]
[1625145249904,0.15,2133.6,2132.7,0.00814983]
[1625145250511,7.0305,2133.4,2132.7,0.00814983]
[1625145250708,15.15,2133.3,2132.7,0.00814983]
[1625145251008,15.15,2133.3,2132.2,0.00989156]
[1625145251009,15.15,2133.3,2132.2,8.806e-05]
[1625145251107,3.51609,2133.0,2132.2,8.806e-05]
[1625145251208,21.94309,2133.0,2132.2,8.806e-05]
[1625145251304,0.12973501,2132.9,2132.2,8.806e-05]
[1625145251975,7.03223,2132.6,2132.2,8.806e-05]
[1625145252908,7.05659813,2132.6,2132.2,8.806e-05]
[1625145253345,15.0,2132.5,2132.2,8.806e-05]
[1625145253442,0.15,2132.4,2132.2,8.806e-05]
[1625145253982,0.17436813,2132.4,2132.2,8.806e-05]
[1625145254584,7.03397,2132.4,2132.2,8.806e-05]
[1625145255741,22.03397,2132.4,2132.2,8.806e-05]
[1625145255886,25.94465874,2132.4,2132.2,8.806e-05]
[1625145256887,25.94465874,2132.4,2131.2,0.00010408]
[1625145257042,0.21559295,2132.3,2131.2,0.00010408]
[1625145257290,0.01188373,2132.2,2131.2,0.00010408]
[1625145257438,0.11386396,2132.1,2131.2,0.00010408]
[1625145258143,7.03518,2131.8,2131.2,0.00010408]
[1625145262093,0.27768102,2132.1,2131.2,0.00010408]
[1625145262194,0.15,2132.1,2131.2,0.00010408]
[1625145262295,10.80568373,2132.2,2131.2,0.00010408]
[1625145262391,10.80568373,2132.2,2131.2,2.58676081]
[1625145262494,0.01188373,2132.2,2131.2,2.58676081]
[1625145263098,7.04425373,2132.2,2131.2,9.65306265]
[1625145263190,7.04425373,2132.2,2131.3,0.07988378]
[1625145263293,7.04425373,2132.2,2131.3,4.9853]
[1625145263394,0.01188373,2132.2,2131.3,4.9853]
[1625145263492,0.01188373,2132.2,2131.4,2.58665673]
[1625145263591,0.01188373,2132.2,2131.4,2.64665673]
[1625145264983,0.01188373,2132.2,2131.4,2.58665673]
[1625145265590,7.04448373,2132.2,2131.4,2.58665673]
[1625145266540,0.01188373,2132.2,2131.4,2.58665673]
[1625145266690,0.01188373,2132.2,2131.5,0.2]
[1625145266991,3.15298373,2132.2,2131.2,0.03418852]
[1625145268336,3.15298373,2132.2,2131.2,2.62084525]
[1625145268487,7.04433373,2132.2,2131.3,0.14]
[1625145268841,7.04433373,2132.2,2131.4,2.58665673]
[1625145269779,4.26272917,2132.2,2131.4,2.58665673]
[1625145270131,4.26272917,2132.2,2131.2,3.55031852]
[1625145270727,4.26272917,2132.2,2131.7,0.01188373]
[1625145274582,10.8383,2132.5,2131.7,4.43518373]
[1625145274829,7.03164,2132.4,2131.8,0.08]
[1625145276831,7.03164,2132.4,2131.8,7.0312354]
[1625145277039,0.00989156,2132.7,2131.8,8.2606354]
[1625145277138,0.00989156,2132.7,2131.9,2.58665673]
[1625145277336,0.00989156,2132.7,2132.0,0.2]
[1625145277433,0.00989156,2132.7,2132.2,6.73533]
[1625145277534,0.00989156,2132.7,2132.2,10.2500565]
[1625145278524,7.04036156,2132.7,2132.2,10.2500565]
[1625145278672,7.04036156,2132.7,2132.3,0.08]
[1625145280173,0.00989156,2132.7,2132.3,0.08]
[1625145281081,0.00989156,2132.7,2132.3,2.50080589]
[1625145281384,0.00989156,2132.7,2132.5,3.51418]
[1625145281583,0.00989156,2132.7,2132.6,0.2]
[1625145281932,0.00814983,2133.2,2132.7,3.51375]
[1625145282030,0.00814983,2133.2,2132.7,7.07875]
[1625145282135,0.00814983,2133.2,2132.7,8.52885]
[1625145282531,7.03683983,2133.2,2132.7,8.52885]
[1625145282734,7.03683983,2133.2,2132.7,5.0151]
[1625145283297,7.03683983,2133.2,2132.3,7.10638589]
[1625145283649,6.98683983,2133.2,2132.4,0.04]
[1625145283749,6.98683983,2133.2,2132.6,3.51425]
[1625145284499,10.6124,2133.5,2132.6,3.51425]
[1625145284603,10.6124,2133.5,2132.6,7.33135]
[1625145284703,7.0281,2133.4,2132.6,10.8453573]
[1625145285048,7.0281,2133.4,2132.7,0.06]
[1625145285625,10.6124,2133.5,2132.9,3.51383]
[1625145285727,0.00664667,2133.7,2132.9,3.51383]
[1625145285825,0.00664667,2133.7,2132.8,1.1337]
[1625145285924,0.00664667,2133.7,2133.0,0.2]
[1625145286127,0.00664667,2133.7,2133.1,0.16]
[1625145286226,0.00664667,2133.7,2133.1,3.2845]
[1625145286980,0.00664667,2133.7,2133.1,6.63776]
[1625145288080,7.03392667,2133.7,2133.1,6.63776]
[1625145288330,7.03392667,2133.7,2133.1,3.1245]
[1625145288427,7.03392667,2133.7,2132.8,3.5135101]
[1625145288676,7.03392667,2133.7,2133.3,0.03405568]
[1625145294383,7.03392667,2133.7,2132.7,4.68429]
[1625145294486,0.15,2133.6,2132.2,4.69532156]
[1625145294682,0.26327982,2133.6,2132.2,4.69532156]
[1625145294883,0.15,2133.6,2132.2,4.69532156]
[1625145295286,0.15,2133.6,2132.7,0.00814983]
[1625145295838,3.51538,2133.4,2132.7,0.00814983]
[1625145296388,9.37414,2133.1,2132.7,0.00814983]
[1625145297854,27.88989,2133.1,2132.7,0.00814983]
[1625145298061,12.88989,2133.1,2132.7,0.00814983]
[1625145298263,9.37414,2133.1,2132.7,0.00814983]
[1625145298364,14.55173,2133.5,2132.7,0.00814983]
[1625145298658,7.02982,2133.1,2132.7,0.00814983]
[1625145299837,10.8164,2133.4,2132.7,0.00814983]
[1625145299943,7.02982,2133.1,2132.7,0.00814983]
[1625145300235,10.8164,2133.4,2132.7,0.00814983]
[1625145300382,10.8164,2133.4,2132.7,3.89414983]
[1625145301143,7.02923,2133.1,2132.7,3.89414983]
[1625145301496,20.18835,2133.4,2132.8,0.14]
[1625145301594,20.18835,2133.4,2132.9,3.51423]
[1625145302297,7.02893,2133.2,2132.9,3.51423]
[1625145302597,7.02893,2133.2,2132.7,0.00814983]
[1625145303404,6.97893,2133.2,2132.7,0.00814983]
[1625145304956,10.8164,2133.4,2132.7,3.52284983]
[1625145305407,7.02921,2133.1,2132.7,3.52284983]
[1625145307224,7.02921,2133.1,2132.8,0.06]
[1625145307918,7.02921,2133.1,2132.7,3.52284983]
[1625145309423,0.03618709,2132.9,2132.7,3.52284983]
[1625145310445,7.06673709,2132.9,2132.7,3.52284983]
[1625145311695,7.06673709,2132.9,2132.7,4.983e-05]
[1625145311796,7.06673709,2132.9,2132.7,3.51474983]
[1625145311995,7.06673709,2132.9,2132.7,4.983e-05]
[1625145313724,32.06673709,2132.9,2132.7,4.983e-05]
[1625145314123,9.37654,2132.8,2132.7,4.983e-05]
[1625145314810,9.41272709,2132.8,2132.7,4.983e-05]
[1625145315159,0.03618709,2132.8,2132.7,4.983e-05]
[1625145317606,0.03618709,2132.8,2132.7,0.03411646]
[1625145317704,0.03618709,2132.8,2132.7,2.18171646]
[1625145317804,0.03618709,2132.8,2132.7,2.28171646]
[1625145318304,10.2849,2133.3,2132.7,2.28171646]
[1625145318458,10.2849,2133.3,2132.9,3.5146]
[1625145318706,7.02903,2133.2,2132.9,3.5146]
[1625145321193,6.97903,2133.2,2132.9,3.5146]
[1625145322116,0.00664667,2133.7,2132.9,3.5146]
[1625145322212,0.00664667,2133.7,2132.9,7.1962]
[1625145322370,0.00664667,2133.7,2132.9,9.78263215]
[1625145322528,0.00664667,2133.7,2133.3,4.77707]
[1625145322915,0.00664667,2133.7,2133.3,4.81112559]
[1625145323115,0.00664667,2133.7,2133.4,3.1366]
[1625145323266,0.00664667,2133.7,2133.4,7.82052]
[1625145324165,0.00664667,2133.7,2133.5,0.12]
[1625145326120,0.00664667,2133.7,2133.5,3.6330687]
[1625145327127,0.00664667,2133.7,2133.5,13.22481801]
[1625145327227,0.00664667,2133.7,2133.6,0.2]
[1625145327577,0.00664667,2133.7,2133.6,2.76707931]
[1625145328295,0.00664667,2133.7,2133.6,2.80113268]
[1625145328558,0.00604713,2134.7,2133.6,2.80113268]
[1625145328652,0.00604713,2134.7,2134.1,3.5112957]
[1625145328802,0.00604713,2134.7,2134.1,9.3942957]
[1625145328906,0.00604713,2134.7,2134.2,0.01972812]
[1625145329008,0.00604713,2134.7,2134.2,2.58680743]
[1625145329251,0.00604713,2134.7,2134.3,0.2]
[1625145329407,0.00604713,2134.7,2134.4,9.6803081]
[1625145329554,0.00604713,2134.7,2134.4,12.24738741]
[1625145329856,0.00604713,2134.7,2134.5,7.02047]
[1625145330104,0.00604713,2134.7,2134.6,2.76707931]
[1625145330205,0.00604713,2134.7,2134.6,6.52497931]
[1625145331501,0.00604713,2134.7,2134.6,0.2]
[1625145332102,0.94669892,2134.7,2134.6,0.2]
[1625145332253,0.00604713,2134.7,2134.2,3.51119]
[1625145332353,0.00604713,2134.7,2134.2,7.0224883]
[1625145332603,0.00604713,2134.7,2134.3,3.5952]
[1625145332700,0.00604713,2134.7,2134.3,5.99770806]
[1625145332953,0.00604713,2134.7,2134.5,45.38041311]
[1625145333204,0.00604713,2134.7,2134.6,2.40250806]
[1625145333303,0.00604713,2134.7,2134.6,2.60250806]
[1625145333505,0.00604713,2134.7,2134.6,9.62274806]
[1625145333654,0.00640793,2135.2,2134.8,3.5093077]
[1625145333808,10.5578,2136.2,2134.9,5.0]
[1625145333904,10.5578,2136.2,2134.9,8.69024251]
[1625145334105,10.5578,2136.2,2135.0,0.22006059]
[1625145334204,10.5578,2136.2,2135.0,2.62256865]
[1625145334405,10.8719,2136.6,2135.0,2.62256865]
[1625145334505,10.8719,2136.6,2135.5,11.6931697]
[1625145334608,0.01,2136.8,2135.5,8.1841497]
[1625145334808,0.01,2136.8,2135.7,0.02300377]
[1625145334906,28.19083098,2137.7,2135.7,0.02300377]
[1625145335071,28.19083098,2137.7,2136.6,3.5075]
[1625145335072,18.05813135,2137.7,2136.6,3.5075]
[1625145335170,18.05813135,2137.7,2136.6,6.53660072]
[1625145335171,28.14403135,2137.7,2136.6,6.53660072]
[1625145335571,28.00713098,2137.7,2136.6,6.53660072]
[1625145335920,28.00713098,2137.7,2136.7,0.12]
[1625145336019,7.01518,2137.6,2136.7,0.12]
[1625145336118,7.01518,2137.6,2136.6,6.5137]
[1625145336921,17.05813098,2137.7,2136.6,3.0062]
[1625145337023,17.05813098,2137.7,2136.1,0.02294728]
[1625145337130,7.01612,2137.3,2135.9,0.02560146]
[1625145337323,7.01612,2137.3,2135.6,9.3758804]
[1625145337563,7.01612,2137.3,2135.7,0.16]
[1625145338013,7.01612,2137.3,2136.2,3.5083]
[1625145338412,9.34759326,2137.3,2136.2,3.5083]
[1625145338964,7.01612,2137.3,2136.3,0.0340027]
[1625145340651,9.50712,2137.4,2136.3,0.0340027]
[1625145340855,0.15,2137.4,2136.3,0.0340027]
[1625145340952,2.48147326,2137.4,2136.3,0.0340027]
[1625145341053,4.71534653,2137.4,2136.3,0.0340027]
[1625145341354,19.71534653,2137.4,2136.3,0.0340027]
[1625145341805,4.71534653,2137.4,2136.3,0.0340027]
[1625145342200,7.01745,2136.9,2136.3,0.0340027]
[1625145342449,0.15,2136.8,2136.3,0.0340027]
[1625145342652,9.35731,2137.0,2136.3,0.0340027]
[1625145342751,0.15,2136.8,2136.3,0.0340027]
[1625145343444,7.01884,2136.6,2136.3,0.0340027]
[1625145343543,0.15,2136.8,2136.3,0.0340027]
[1625145344928,11.68859326,2137.4,2136.3,0.0340027]
[1625145345022,11.83859326,2137.4,2136.3,4.9761027]
[1625145345624,26.83859326,2137.4,2136.3,4.9761027]
[1625145345926,7.01727,2136.9,2136.3,4.9761027]
[1625145346273,7.00622433,2136.9,2136.3,4.9761027]
[1625145347624,7.00622433,2136.9,2136.4,0.0119458]
[1625145348225,7.00622433,2136.9,2136.5,0.12]
[1625145348477,7.00622433,2136.9,2136.4,0.0119458]
[1625145348978,9.35712,2137.4,2136.3,11.9928259]
[1625145349527,7.01575,2137.3,2136.3,11.9928259]
[1625145349729,7.01575,2137.3,2136.4,0.04]
[1625145349982,7.01575,2137.3,2136.4,0.04624112]
[1625145350480,7.01575,2137.3,2136.4,0.00624112]
[1625145351599,7.16575,2137.3,2136.4,0.00624112]
[1625145351953,7.04876541,2137.3,2136.4,0.00624112]
[1625145352399,7.04876541,2137.3,2136.5,0.08]
[1625145352499,7.04876541,2137.3,2136.7,3.50792]
[1625145352601,7.04876541,2137.3,2136.7,6.05572]
[1625145353777,7.04876541,2137.3,2136.7,4.45352]
[1625145353879,7.04876541,2137.3,2136.4,0.00624112]
[1625145354032,15.0,2137.2,2136.4,0.00624112]
[1625145354228,2.33147326,2137.3,2136.4,0.00624112]
[1625145354480,0.15,2137.2,2136.4,0.00624112]
[1625145354780,0.15,2137.2,2136.5,3.50846]
[1625145355030,7.0185,2136.8,2136.6,0.06]
[1625145355131,0.15,2137.2,2136.6,3.5682141]
[1625145355231,0.15,2137.0,2136.6,3.5682141]
[1625145355383,0.15,2137.0,2136.6,3.5082141]
[1625145355481,0.15,2137.0,2136.5,3.50846]
[1625145356987,7.16643,2137.0,2136.5,3.50846]
[1625145357386,7.16643,2137.0,2136.4,0.00624112]
[1625145359969,7.16643,2137.0,2136.4,3.51484642]
[1625145360026,7.16643,2137.0,2136.4,4.59954642]
[1625145360176,7.16643,2137.0,2136.5,0.1]
[1625145360579,7.16643,2137.0,2136.6,3.50852]
[1625145361078,7.16643,2137.0,2136.4,4.59954642]
[1625145361180,7.16643,2137.0,2136.4,3.51484642]
[1625145362677,7.16643,2137.0,2136.6,3.50866]
[1625145363177,7.16643,2137.0,2136.7,3.5085082]
[1625145363829,7.16643,2137.0,2136.7,3.5485082]
[1625145363928,7.16643,2137.0,2136.7,3.5085082]
[1625145364521,7.16643,2137.0,2136.7,0.73199714]
[1625145364922,7.16643,2137.0,2136.7,0.76599867]
[1625145365474,7.16643,2137.0,2136.8,0.00707304]
[1625145366624,7.16643,2137.0,2136.7,0.03400153]
[1625145369676,11.36633,2137.0,2136.7,0.03400153]
[1625145370474,3e-05,2137.0,2136.7,0.03400153]
[1625145370582,7.16646,2137.0,2136.7,0.03400153]
[1625145370682,7.16643,2137.0,2136.7,1.39440153]
[1625145370830,7.16643,2137.0,2136.7,5.90783153]
[1625145371029,7.16643,2137.0,2136.8,0.12]
[1625145371232,0.00707304,2137.3,2136.8,4.7542]
[1625145371336,0.00707304,2137.3,2136.8,8.2623785]
[1625145371636,0.00707304,2137.3,2136.9,0.16]
[1625145371740,0.00707304,2137.3,2137.0,3.50772]
[1625145372388,7.01523,2137.2,2137.0,3.50772]
[1625145373564,7.01523,2137.2,2137.1,0.06]
[1625145373966,0.00707304,2137.3,2137.1,0.06]